fUSD/lending_fUSD_20241221
["ID","MTS","AMOUNT","RATE_DAILY","PERIOD"]
[346165954,1734762665718,-500.0,0.00021944,2]
[346165955,1734762665727,-500.0,0.00021944,2]
[346165956,1734762665737,-500.0,0.00021944,2]
[346165957,1734762665746,-500.0,0.00021944,2]
[346165958,1734762665756,-500.0,0.00021944,2]
[346165959,1734762665766,-1500.0,0.00021948,2]
[346165960,1734762665775,-150.0,0.00021951,2]
[346165961,1734762665787,-153.0,0.00021953,2]
[346165962,1734762665798,-153.0,0.00021953,2]
[346165963,1734762665808,-153.0,0.00021953,2]
[346165964,1734762665818,-153.0,0.00021953,2]
[346165965,1734762665827,-153.0,0.00021953,2]
[346165966,1734762665838,-153.0,0.00021953,2]
[346165967,1734762665847,-153.0,0.00021953,2]
[346165968,1734762665856,-153.0,0.00021953,2]
[346165969,1734762665866,-153.0,0.00021953,2]
[346165970,1734762665875,-153.0,0.00021953,2]
[346165971,1734762665887,-153.0,0.00021953,2]
[346165972,1734762665898,-153.0,0.00021953,2]
[346165973,1734762665907,-153.0,0.00021953,2]
[346165974,1734762665917,-153.0,0.00021953,2]
[346165975,1734762665928,-153.0,0.00021953,2]
[346165976,1734762665937,-153.0,0.00021953,2]
[346165977,1734762665947,-153.0,0.00021953,2]
[346165978,1734762665957,-153.0,0.00021953,2]
[346165979,1734762665969,-153.0,0.00021953,2]
[346165980,1734762665979,-153.0,0.00021953,2]
[346165981,1734762665989,-153.0,0.00021953,2]
[346165982,1734762665998,-153.0,0.00021953,2]
[346165983,1734762666008,-153.0,0.00021953,2]
[346165984,1734762666017,-153.0,0.00021953,2]
[346165985,1734762666026,-153.0,0.00021953,2]
[346165986,1734762666039,-153.0,0.00021953,2]
[346165987,1734762666050,-358.0,0.00021973,2]
[346165988,1734762666060,-500.0,0.00021973,2]
[346165989,1734762666070,-500.0,0.00021973,2]
[346165990,1734762666079,-185.74683461,0.00021973,2]
[346165991,1734762666091,-150.0,0.00021986,2]
[346165992,1734762666102,-4186.2552903,0.00021995,2]
[346165993,1734762666112,-1719.2982294,0.00021995,2]
[346165994,1734762666122,-12398.30981131,0.00021999,2]
[346165995,1734762666132,-500.0,0.00021999,2]
[346165996,1734762666141,-500.0,0.00021999,2]
[346165997,1734762666151,-428.07531334,0.00021999,2]
[346165998,1734762666160,-999.0,0.00021999,2]
[346165999,1734762666170,-794.04,0.00021999,2]
[346166000,1734762666180,-794.04,0.00021999,2]
[346166001,1734762666190,-794.04,0.00021999,2]
[346166002,1734762666199,-794.04,0.00021999,2]
[346166003,1734762666209,-794.04,0.00021999,2]
[346166004,1734762666218,-794.04,0.00021999,2]
[346166005,1734762666228,-794.04,0.00021999,2]
[346166006,1734762666238,-794.04,0.00021999,2]
[346166007,1734762666248,-794.04,0.00021999,2]
[346166008,1734762666258,-794.04,0.00021999,2]
[346166009,1734762666267,-1276.64,0.00021999,2]
[346166010,1734762666277,-1276.64,0.00021999,2]
[346166011,1734762666287,-1276.64,0.00021999,2]
[346166012,1734762666296,-1276.64,0.00021999,2]
[346166013,1734762666305,-1276.64,0.00021999,2]
[346166014,1734762666315,-1276.64,0.00021999,2]
[346166015,1734762666324,-1276.64,0.00021999,2]
[346166016,1734762666334,-1276.64,0.00021999,2]
[346166017,1734762666343,-1276.64,0.00021999,2]
[346166018,1734762666353,-1276.64,0.00021999,2]
[346166019,1734762666363,-2341412.68851455,0.00022,7]
[346166020,1734762666373,-278.92447061,0.00022,4]
[346166021,1734762666382,-93038.44166212,0.00022,7]
[346166022,1734762666392,-1000.0,0.00022,2]
[346166023,1734762666403,-1000.0,0.00022,2]
[346166024,1734762666412,-1025.76335854,0.00022,2]
[346166025,1734762666421,-13313.67989402,0.00022,7]
[346166026,1734762666431,-1900.0,0.00022,20]
[346166027,1734762666441,-1000.0,0.00022,120]
[346166028,1734762666450,-151.0,0.00022,7]
[346166029,1734762666460,-151.0,0.00022,7]
[346166030,1734762666469,-151.0,0.00022,7]
[346166031,1734762666478,-200.0,0.00022,2]
[346166032,1734762666488,-2110.0,0.00022,2]
[346166033,1734762666497,-200.0,0.00022,2]
[346166034,1734762666506,-391.0,0.00022,2]
[346166035,1734762666515,-3000.0,0.00022,8]
[346166036,1734762666525,-3330.0,0.00022,9]
[346166037,1734762666535,-3638.23,0.00022,13]
[346166038,1734762666549,-2000.0,0.00022,2]
[346166039,1734762666559,-200.0,0.00022,2]
[346166040,1734762666568,-500.0,0.00022,2]
[346166041,1734762666578,-151.0,0.00022,7]
[346166042,1734762666588,-229.42635,0.00022,7]
[346166043,1734762666597,-151.0,0.00022,7]
[346166044,1734762666607,-245.25356602,0.00022,2]
[346166045,1734762666616,-1512.22809348,0.00022,3]
[346166046,1734762666626,-20083.12479936,0.00022,14]
[346166047,1734762666635,-127838.95711347,0.00022,2]
[346166048,1734762666646,-151.0,0.00022,7]
[346166049,1734762666655,-151.0,0.00022,7]
[346166050,1734762666665,-5362.0,0.00022,120]
[346166051,1734762666675,-151.0,0.00022,7]
[346166052,1734762666684,-151.0,0.00022,7]
[346166053,1734762666694,-151.892808,0.00022,7]
[346166054,1734762666703,-151.0,0.00022,7]
[346166055,1734762666712,-2000.0,0.00022,2]
[346166056,1734762666722,-213.906157,0.00022,7]
[346166057,1734762666731,-200.0,0.00022,2]
[346166058,1734762666740,-213.906157,0.00022,7]
[346166059,1734762666749,-582.37083178,0.00022005,2]
[346166060,1734762666759,-503.7454029,0.0002201,2]
[346166061,1734762666769,-3574.97424865,0.00022029,2]
[346166062,1734762666778,-153.96849825,0.00022035,2]
[346166063,1734762666791,-1468.9277112,0.0002205,2]
[346166064,1734762666800,-1452.02851811,0.00022055,2]
[346166065,1734762666809,-679.0,0.00022057,2]
[346166066,1734762666819,-150.0,0.00022061,2]
[346166067,1734762666828,-1000.15,0.00022067,2]
[346166068,1734762666837,-991.74,0.00022069,2]
[346166069,1734762666847,-500.0,0.00022072,2]
[346166070,1734762666856,-538.36945,0.00022088,7]
[346166071,1734762666865,-3563.78854244,0.000221,2]
[346166072,1734762666876,-229.84352876,0.0002211,2]
[346166073,1734762666888,-203.29,0.00022114,2]
[346166074,1734762666898,-150.0,0.00022129,2]
[346166075,1734762666907,-500.0,0.00022136,2]
[346166076,1734762666917,-30000.0,0.00022154,3]
[346166077,1734762666927,-150.0,0.00022164,2]
[346166078,1734762666938,-1452.02851811,0.00022164,2]
[346166079,1734762666948,-1079.97,0.00022191,2]
[346166080,1734762666959,-1224.45,0.00022191,2]
[346166081,1734762666968,-2176.47,0.00022191,2]
[346166082,1734762666977,-943.01,0.00022191,2]
[346166083,1734762666986,-1534.27,0.00022191,2]
[346166084,1734762666996,-3068.89,0.00022191,2]
[346166085,1734762667006,-2229.29,0.00022191,2]
[346166086,1734762667015,-1660.81,0.00022191,2]
[346166087,1734762667026,-2717.75,0.00022191,2]
[346166088,1734762667035,-2210.95,0.00022191,2]
[346166089,1734762667048,-1874.61,0.00022191,2]
[346166090,1734762667058,-500.0,0.00022191,2]
[346166091,1734762667068,-3498.34,0.00022191,2]
[346166092,1734762667077,-1932.17,0.00022191,2]
[346166093,1734762667086,-500.0,0.00022191,2]
[346166094,1734762667095,-1354.83,0.00022191,2]
[346166095,1734762667105,-500.0,0.00022191,2]
[346166096,1734762667115,-10318.63,0.00022191,2]
[346166097,1734762667124,-565.37,0.00022191,2]
[346166098,1734762667134,-313.82660283,0.00022191,2]
[346166099,1734762667144,-1118.69,0.00022191,2]
[346166100,1734762667153,-1119.59,0.00022191,2]
[346166101,1734762667163,-391.0,0.00022192,2]
[346166102,1734762667172,-7510.497965,0.000222,2]
[346166103,1734762667181,-150.0,0.00022202,2]
[346166104,1734762667191,-150.0,0.00022213,2]
[346166105,1734762667201,-2488.69088878,0.00022215,2]
[346166106,1734762667210,-500.0,0.00022215,2]
[346166107,1734762667219,-1129.95,0.00022215,2]
[346166108,1734762667228,-945.4,0.00022215,2]
[346166109,1734762667238,-716.68,0.00022215,2]
[346166110,1734762667247,-505.7,0.00022215,2]
[346166111,1734762667256,-878.2,0.00022215,2]
[346166112,1734762667266,-500.0,0.00022215,2]
[346166113,1734762667275,-500.0,0.00022215,2]
[346166114,1734762667284,-500.0,0.00022215,2]
[346166115,1734762667296,-500.0,0.00022215,2]
[346166116,1734762667306,-798.65,0.00022215,2]
[346166117,1734762667315,-509.21600012,0.00022215,2]
[346166118,1734762667325,-651.53,0.00022215,2]
[346166119,1734762667334,-825.6,0.00022215,2]
[346166120,1734762667343,-533.53,0.00022215,2]
[346166121,1734762667425,-500.0,0.00022215,2]
[346166122,1734762667434,-500.0,0.00022215,2]
[346166123,1734762667443,-500.0,0.00022215,2]
[346166124,1734762667454,-661.88,0.00022215,2]
[346166125,1734762667463,-640.6,0.00022215,2]
[346166126,1734762667474,-500.0,0.00022215,2]
[346166127,1734762667482,-500.0,0.00022215,2]
[346166128,1734762667492,-516.55773884,0.00022215,2]
[346166129,1734762667502,-500.0,0.00022215,2]
[346166130,1734762667512,-778.66,0.00022215,2]
[346166131,1734762667521,-500.0,0.00022215,2]
[346166132,1734762667530,-725.75,0.00022215,2]
[346166133,1734762667539,-500.0,0.00022215,2]
[346166134,1734762667548,-500.0,0.00022215,2]
[346166135,1734762667557,-500.0,0.00022215,2]
[346166136,1734762667566,-785.03,0.00022215,2]
[346166137,1734762667575,-356.81726303,0.00022215,2]
[346166138,1734762667584,-555.17,0.00022215,2]
[346166139,1734762667593,-500.0,0.00022215,2]
[346166140,1734762667605,-530.93,0.00022215,2]
[346166141,1734762667614,-571.64,0.00022215,2]
[346166142,1734762667623,-824.95,0.00022215,2]
[346166143,1734762667632,-1154.21,0.00022215,2]
[346166144,1734762667641,-505.82,0.00022215,2]
[346166145,1734762667651,-641.5,0.00022215,2]
[346166146,1734762667660,-500.0,0.00022215,2]
[346166147,1734762667670,-500.0,0.00022215,2]
[346166148,1734762667679,-759.47,0.00022215,2]
[346166149,1734762667688,-500.0,0.00022215,2]
[346166150,1734762667697,-719.01,0.00022215,2]
[346166151,1734762667707,-500.0,0.00022215,2]
[346166152,1734762667716,-559.19,0.00022215,2]
[346166153,1734762667725,-643.01,0.00022215,2]
[346166154,1734762667735,-500.0,0.00022215,2]
[346166155,1734762667743,-500.0,0.00022215,2]
[346166156,1734762667752,-500.0,0.00022215,2]
[346166157,1734762667761,-531.7,0.00022215,2]
[346166158,1734762667770,-595.1,0.00022215,2]
[346166159,1734762667780,-500.0,0.00022215,2]
[346166160,1734762667789,-728.88,0.00022215,2]
[346166161,1734762667798,-500.0,0.00022215,2]
[346166162,1734762667807,-500.0,0.00022215,2]
[346166163,1734762667816,-500.0,0.00022215,2]
[346166164,1734762667826,-651.48,0.00022215,2]
[346166165,1734762667836,-1169.52,0.00022215,2]
[346166166,1734762667846,-511.96,0.00022215,2]
[346166167,1734762667857,-1404.37,0.00022215,2]
[346166168,1734762667867,-857.24,0.00022215,2]
[346166169,1734762667877,-623.31,0.00022215,2]
[346166170,1734762667889,-500.0,0.00022215,2]
[346166171,1734762667898,-500.0,0.00022215,2]
[346166172,1734762667909,-717.36,0.00022215,2]
[346166173,1734762667920,-296.81743887,0.00022215,2]
[346166174,1734762667933,-727.07,0.00022215,2]
[346166175,1734762667942,-500.0,0.00022215,2]
[346166176,1734762667951,-1561.63,0.00022215,2]
[346166177,1734762667963,-608.09,0.00022215,2]
[346166178,1734762667972,-500.0,0.00022215,2]
[346166179,1734762667981,-795.08,0.00022215,2]
[346166180,1734762667990,-500.0,0.00022215,2]
[346166181,1734762668000,-1607.753683,0.00022215,2]
[346166182,1734762668010,-1328.89,0.00022215,2]
[346166183,1734762668019,-500.0,0.00022215,2]
[346166184,1734762668028,-759.82,0.00022215,2]
[346166185,1734762668037,-500.0,0.00022215,2]
[346166186,1734762668048,-2471.688251,0.00022215,2]
[346166187,1734762668057,-2334.14,0.00022215,2]
[346166188,1734762668066,-1192.55,0.00022215,2]
[346166189,1734762668075,-663.59,0.00022215,2]
[346166190,1734762668084,-500.0,0.00022215,2]
[346166191,1734762668094,-613.61,0.00022215,2]
[346166192,1734762668104,-1857.4,0.00022215,2]
[346166193,1734762668114,-743.67,0.00022215,2]
[346166194,1734762668124,-612.45,0.00022215,2]
[346166195,1734762668133,-1951.38,0.00022215,2]
[346166196,1734762668143,-950.79,0.00022215,2]
[346166197,1734762668152,-500.0,0.00022215,2]
[346166198,1734762668162,-633.8,0.00022215,2]
[346166199,1734762668171,-735.75,0.00022215,2]
[346166200,1734762668180,-2439.59,0.00022215,2]
[346166201,1734762668189,-656.72,0.00022215,2]
[346166202,1734762668199,-1163.17,0.00022215,2]
[346166203,1734762668208,-799.04,0.00022215,2]
[346166204,1734762668218,-794.04,0.00022215,2]
[346166205,1734762668227,-983.81,0.00022215,2]
[346166206,1734762668237,-878.92,0.00022215,2]
[346166207,1734762668246,-500.0,0.00022215,2]
[346166208,1734762668255,-1276.64,0.00022215,2]
[346166209,1734762668265,-904.13,0.00022215,2]
[346166210,1734762668275,-1244.02,0.00022215,2]
[346166211,1734762668283,-9383.06,0.00022215,2]
[346166212,1734762668294,-1268.89,0.00022215,2]
[346166213,1734762668303,-1339.5,0.00022215,2]
[346166214,1734762668312,-682.04,0.00022215,2]
[346166215,1734762668321,-1529.55,0.00022215,2]
[346166216,1734762668330,-1674.98,0.00022215,2]
[346166217,1734762668339,-1047.45,0.00022215,2]
[346166218,1734762668348,-989.85,0.00022215,2]
[346166219,1734762668358,-886.98,0.00022215,2]
[346166220,1734762668367,-592.58,0.00022215,2]
[346166221,1734762668376,-933.71,0.00022215,2]
[346166222,1734762668385,-500.0,0.00022215,2]
[346166223,1734762668394,-1944.34,0.00022215,2]
[346166224,1734762668403,-3625.55,0.00022215,2]
[346166225,1734762668413,-500.0,0.00022215,2]
[346166226,1734762668423,-1309.07,0.00022215,2]
[346166227,1734762668432,-500.0,0.00022215,2]
[346166228,1734762668442,-832.32,0.00022215,2]
[346166229,1734762668451,-599.80896153,0.00022215,2]
[346166230,1734762668460,-500.0,0.00022215,2]
[346166231,1734762668469,-9438.28,0.00022215,2]
[346166232,1734762668479,-500.0,0.00022215,2]
[346166233,1734762668488,-2815.2,0.00022215,2]
[346166234,1734762668497,-2582.69,0.00022215,2]
[346166235,1734762668506,-500.0,0.00022215,2]
[346166236,1734762668516,-500.0,0.00022215,2]
[346166237,1734762668525,-500.0,0.00022215,2]
[346166238,1734762668534,-500.0,0.00022215,2]
[346166239,1734762668544,-647.96,0.00022215,2]
[346166240,1734762668553,-2608.29,0.00022215,2]
[346166241,1734762668562,-1121.25,0.00022215,2]
[346166242,1734762668571,-1245.39,0.00022215,2]
[346166243,1734762668580,-500.0,0.00022215,2]
[346166244,1734762668591,-788.01,0.00022215,2]
[346166245,1734762668601,-1899.18,0.00022215,2]
[346166246,1734762668610,-1386.91,0.00022215,2]
[346166247,1734762668619,-6741.73,0.00022215,2]
[346166248,1734762668629,-2335.79,0.00022215,2]
[346166249,1734762668639,-1032.91,0.00022215,2]
[346166250,1734762668648,-500.0,0.00022216,2]
[346166251,1734762668657,-591.57823972,0.00022216,2]
[346166252,1734762668667,-500.0,0.00022216,2]
[346166253,1734762668676,-500.0,0.00022216,2]
[346166254,1734762668685,-500.0,0.00022216,2]
[346166255,1734762668694,-500.0,0.00022216,2]
[346166256,1734762668703,-500.0,0.00022216,2]
[346166257,1734762668713,-500.0,0.00022216,2]
[346166258,1734762668722,-259.36397847,0.00022216,2]
[346166259,1734762668731,-500.0,0.00022216,2]
[346166260,1734762668741,-500.0,0.00022216,2]
[346166261,1734762668750,-500.0,0.00022216,2]
[346166262,1734762668759,-500.0,0.00022216,2]
[346166263,1734762668768,-500.0,0.00022216,2]
[346166264,1734762668777,-564.66,0.00022216,2]
[346166265,1734762668787,-500.0,0.00022216,2]
[346166266,1734762668798,-500.0,0.00022216,2]
[346166267,1734762668808,-500.0,0.00022216,2]
[346166268,1734762668817,-507.26515659,0.00022216,2]
[346166269,1734762668827,-500.0,0.00022216,2]
[346166270,1734762668836,-624.13265168,0.00022216,2]
[346166271,1734762668845,-500.0,0.00022216,2]
[346166272,1734762668854,-500.0,0.00022216,2]
[346166273,1734762668863,-500.0,0.00022216,2]
[346166274,1734762668872,-500.0,0.00022216,2]
[346166275,1734762668882,-500.0,0.00022216,2]
[346166276,1734762668894,-500.0,0.00022216,2]
[346166277,1734762668903,-500.0,0.00022216,2]
[346166278,1734762668913,-500.0,0.00022216,2]
[346166279,1734762668923,-500.0,0.00022216,2]
[346166280,1734762668933,-500.0,0.00022216,2]
[346166281,1734762668942,-500.0,0.00022216,2]
[346166282,1734762668952,-500.0,0.00022216,2]
[346166283,1734762668962,-500.0,0.00022216,2]
[346166284,1734762668972,-500.0,0.00022216,2]
[346166285,1734762668981,-500.0,0.00022216,2]
[346166286,1734762668991,-500.0,0.00022216,2]
[346166287,1734762669001,-500.0,0.00022216,2]
[346166288,1734762669010,-500.0,0.00022216,2]
[346166289,1734762669019,-545.1,0.00022216,2]
[346166290,1734762669028,-500.0,0.00022216,2]
[346166291,1734762669038,-500.0,0.00022216,2]
[346166292,1734762669049,-500.0,0.00022216,2]
[346166293,1734762669058,-500.0,0.00022216,2]
[346166294,1734762669068,-500.0,0.00022216,2]
[346166295,1734762669078,-662.37,0.00022216,2]
[346166296,1734762669088,-500.0,0.00022216,2]
[346166297,1734762669097,-500.0,0.00022216,2]
[346166298,1734762669107,-659.76,0.00022216,2]
[346166299,1734762669116,-500.0,0.00022216,2]
[346166300,1734762669126,-500.0,0.00022216,2]
[346166301,1734762669135,-500.0,0.00022216,2]
[346166302,1734762669145,-669.24,0.00022216,2]
[346166303,1734762669154,-500.0,0.00022216,2]
[346166304,1734762669163,-500.0,0.00022216,2]
[346166305,1734762669174,-716.57,0.00022216,2]
[346166306,1734762669184,-339.69114257,0.00022216,2]
[346166307,1734762669194,-604.12,0.00022216,2]
[346166308,1734762669204,-504.42,0.00022216,2]
[346166309,1734762669213,-500.0,0.00022216,2]
[346166310,1734762669223,-500.0,0.00022216,2]
[346166311,1734762669233,-500.0,0.00022216,2]
[346166312,1734762669242,-500.0,0.00022216,2]
[346166313,1734762669251,-500.0,0.00022216,2]
[346166314,1734762669260,-500.0,0.00022216,2]
[346166315,1734762669269,-500.0,0.00022216,2]
[346166316,1734762669278,-687.48,0.00022216,2]
[346166317,1734762669287,-1000.0,0.00022216,30]
[346166318,1734762669298,-807.05,0.00022216,2]
[346166319,1734762669307,-500.0,0.00022216,2]
[346166320,1734762669316,-500.0,0.00022216,2]
[346166321,1734762669325,-568.83,0.00022216,2]
[346166322,1734762669335,-522.35863935,0.00022216,2]
[346166323,1734762669344,-1137.49,0.00022216,2]
[346166324,1734762669354,-528.28,0.00022216,2]
[346166325,1734762669363,-500.0,0.00022216,2]
[346166326,1734762669372,-500.0,0.00022216,2]
[346166327,1734762669382,-535.82,0.00022216,2]
[346166328,1734762669391,-520.39,0.00022216,2]
[346166329,1734762669400,-758.02,0.00022216,2]
[346166330,1734762669409,-500.0,0.00022216,2]
[346166331,1734762669419,-456.7805655,0.00022216,2]
[346166332,1734762669428,-766.99,0.00022216,2]
[346166333,1734762669437,-500.0,0.00022216,2]
[346166334,1734762669447,-500.0,0.00022216,2]
[346166335,1734762669456,-335.85143517,0.00022216,2]
[346166336,1734762669465,-500.0,0.00022216,2]
[346166337,1734762669475,-504.74,0.00022216,2]
[346166338,1734762669484,-500.0,0.00022216,2]
[346166339,1734762669494,-1029.63,0.00022216,2]
[346166340,1734762669503,-478.32335753,0.00022216,2]
[346166341,1734762669512,-500.0,0.00022216,2]
[346166342,1734762669522,-500.0,0.00022216,2]
[346166343,1734762669532,-611.01,0.00022216,2]
[346166344,1734762669541,-500.0,0.00022216,2]
[346166345,1734762669551,-500.0,0.00022216,2]
[346166346,1734762669560,-515.04,0.00022216,2]
[346166347,1734762669569,-640.01,0.00022216,2]
[346166348,1734762669579,-500.0,0.00022216,2]
[346166349,1734762669588,-500.0,0.00022216,2]
[346166350,1734762669598,-706.47,0.00022216,2]
[346166351,1734762669608,-500.0,0.00022216,2]
[346166352,1734762669618,-317.21737408,0.00022216,2]
[346166353,1734762669627,-500.0,0.00022216,2]
[346166354,1734762669637,-716.24,0.00022216,2]
[346166355,1734762669646,-500.0,0.00022216,2]
[346166356,1734762669656,-978.76,0.00022216,2]
[346166357,1734762669665,-500.0,0.00022216,2]
[346166358,1734762669675,-500.0,0.00022216,2]
[346166359,1734762669685,-1126.57,0.00022216,2]
[346166360,1734762669694,-399.02386952,0.00022216,2]
[346166361,1734762669704,-658.57,0.00022216,2]
[346166362,1734762669713,-513.89,0.00022216,2]
[346166363,1734762669722,-806.59,0.00022216,2]
[346166364,1734762669732,-510.81613728,0.00022216,2]
[346166365,1734762669747,-500.0,0.00022216,2]
[346166366,1734762669756,-500.0,0.00022216,2]
[346166367,1734762669766,-949.92,0.00022216,2]
[346166368,1734762669775,-862.92,0.00022216,2]
[346166369,1734762669785,-500.0,0.00022216,2]
[346166370,1734762669795,-1094.54,0.00022216,2]
[346166371,1734762669805,-500.0,0.00022216,2]
[346166372,1734762669815,-500.0,0.00022216,2]
[346166373,1734762669825,-500.0,0.00022216,2]
[346166374,1734762669834,-500.0,0.00022216,2]
[346166375,1734762669844,-500.0,0.00022216,2]
[346166376,1734762669854,-500.0,0.00022216,2]
[346166377,1734762669865,-500.0,0.00022216,2]
[346166378,1734762669875,-609.66,0.00022216,2]
[346166379,1734762669888,-578.0,0.00022216,2]
[346166380,1734762669899,-642.48750791,0.00022216,2]
[346166381,1734762669910,-888.96,0.00022216,2]
[346166382,1734762669920,-500.0,0.00022216,2]
[346166383,1734762669931,-500.0,0.00022216,2]
[346166384,1734762669940,-500.0,0.00022216,2]
[346166385,1734762669951,-519.1895154,0.00022216,2]
[346166386,1734762669964,-341.13754642,0.00022216,2]
[346166387,1734762669974,-500.0,0.00022216,2]
[346166388,1734762669984,-500.0,0.00022216,2]
[346166389,1734762669994,-500.0,0.00022216,2]
[346166390,1734762670004,-500.0,0.00022216,2]
[346166391,1734762670014,-812.35,0.00022216,2]
[346166392,1734762670024,-500.0,0.00022216,2]
[346166393,1734762670033,-500.0,0.00022216,2]
[346166394,1734762670045,-500.0,0.00022216,2]
[346166395,1734762670054,-500.0,0.00022216,2]
[346166396,1734762670064,-607.33,0.00022216,2]
[346166397,1734762670074,-500.0,0.00022216,2]
[346166398,1734762670083,-697.2,0.00022216,2]
[346166399,1734762670094,-500.0,0.00022216,2]
[346166400,1734762670105,-1126.91,0.00022216,2]
[346166401,1734762670115,-7280.05,0.00022216,2]
[346166402,1734762670125,-500.0,0.00022216,2]
[346166403,1734762670136,-500.0,0.00022216,2]
[346166404,1734762670145,-500.0,0.00022216,2]
[346166405,1734762670157,-1605.56,0.00022216,2]
[346166406,1734762670167,-500.0,0.00022216,2]
[346166407,1734762670177,-831.81,0.00022216,2]
[346166408,1734762670187,-500.0,0.00022216,2]
[346166409,1734762670197,-500.0,0.00022216,2]
[346166410,1734762670207,-500.0,0.00022216,2]
[346166411,1734762670216,-1088.39,0.00022216,2]
[346166412,1734762670227,-500.0,0.00022216,2]
[346166413,1734762670236,-1414.7,0.00022216,2]
[346166414,1734762670246,-2004.44,0.00022216,2]
[346166415,1734762670255,-500.0,0.00022216,2]
[346166416,1734762670265,-857.46,0.00022216,2]
[346166417,1734762670275,-500.0,0.00022216,2]
[346166418,1734762670285,-500.0,0.00022216,2]
[346166419,1734762670296,-3951.27,0.00022216,2]
[346166420,1734762670306,-1756.77,0.00022216,2]
[346166421,1734762670316,-500.0,0.00022216,2]
[346166422,1734762670326,-500.0,0.00022216,2]
[346166423,1734762670337,-500.0,0.00022216,2]
[346166424,1734762670347,-500.0,0.00022216,2]
[346166425,1734762670356,-3839.14,0.00022216,2]
[346166426,1734762670366,-4550.25,0.00022216,2]
[346166427,1734762670376,-500.0,0.00022216,2]
[346166428,1734762670386,-500.0,0.00022216,2]
[346166429,1734762670396,-500.0,0.00022216,2]
[346166430,1734762670407,-473.79620717,0.00022216,2]
[346166431,1734762670417,-500.0,0.00022216,2]
[346166432,1734762670427,-500.0,0.00022216,2]
[346166433,1734762670437,-500.0,0.00022216,2]
[346166434,1734762670447,-500.0,0.00022216,2]
[346166435,1734762670457,-607.24,0.00022216,2]
[346166436,1734762670467,-3696.52,0.00022216,2]
[346166437,1734762670477,-984.06,0.00022216,2]
[346166438,1734762670487,-500.0,0.00022216,2]
[346166439,1734762670497,-1407.29,0.00022216,2]
[346166440,1734762670507,-500.0,0.00022216,2]
[346166441,1734762670517,-500.0,0.00022216,2]
[346166442,1734762670527,-500.0,0.00022216,2]
[346166443,1734762670537,-500.0,0.00022216,2]
[346166444,1734762670549,-500.0,0.00022216,2]
[346166445,1734762670559,-2999.94,0.00022216,2]
[346166446,1734762670570,-3106.35,0.00022216,2]
[346166447,1734762670580,-500.0,0.00022216,2]
[346166448,1734762670591,-348.2026093,0.00022216,2]
[346166449,1734762670600,-500.0,0.00022216,2]
[346166450,1734762670615,-500.0,0.00022216,2]
[346166451,1734762670626,-1036.05,0.00022216,2]
[346166452,1734762670636,-500.0,0.00022216,2]
[346166453,1734762670646,-798.83,0.00022216,2]